Cogmind - Beta 15 *** ADVENTURER MODE // 2025.05.14 @ 23:18:27 Player: Jack Result: Destroyed by G-67 Veteran with Plasma Rifle Performance ------------- Evolutions (7) 3500 Regions Visited (13) 2600 Robots Destroyed (27) 135 Value Destroyed (401) 401 Prototype IDs (26) 520 Alien Tech Used (0) 0 Bonus (2226) 2226 TOTAL SCORE: 9382 Bonus ------- Triggered Max Security 1000 Follower Combat Kills 438 Entered DSFs 500 Aligned with FarCom 300 Friendly Fire -12 Cogmind --------- Core Integrity 0/1300 Matter 263/300 Energy 90/100 System Corruption 18% Temperature Cool (12) Movement Core (50) Location -3/Testing Parts ------- > --- POWER (1) -------- (None) > --- PROPULSION (6) --- (None) > --- UTILITY (12) ----- Authchip [Device] > --- WEAPON (2) ------- (None) > --- INVENTORY (5) ---- Great Axe Molecular Scythe Peak State ------------ > --- POWER ------------ Deuterium Engine > --- PROPULSION ------- Nuclear Pulse Array Nuclear Pulse Array Nuclear Pulse Array > --- UTILITY ---------- Structural Scanner Advanced Signal Interpreter Authchip [Device] Authchip [Device] Authchip [Processor] Authchip [Processor] Authchip [Weapon] > --- WEAPON ----------- Advanced Datajack Field Lobotomy Kit > --- INVENTORY -------- Great Axe [Rating: 82] Favorites ----------- Power Deuterium Engine Engine Deuterium Engine Propulsion Nuclear Pulse Array Flight Unit Nuclear Pulse Array Utility Authchip [Processor] Device Scrap Engine Processor Advanced Signal Interpreter Hackware Authchip [Processor] Weapon Great Axe Energy Gun Medium Laser Ballistic Gun Light Assault Rifle Launcher Grenade Launcher Special Weapon Field Lobotomy Kit Impact Weapon Maul Slashing Weapon Great Axe Special Melee Weapon Advanced Datajack Build | -11 -10 -10 -10 -9 -8 -8 -8 -6 -5 -5 -4 -3 -3 ------- Run | Yrd Mat Min Exi Min Mat Sto Rec Fac Fac DSF Fac Res Tes Slots Evolved 14 | . . . . . 4 . . 4 2 . 2 2 . Power . | . . . . . . . . . . . . . . Propulsion 4 | . . . . . 2 . . . . . 2 . . Utility 10 | . . . . . 2 . . 4 2 . . 2 . Weapon . | . . . . . . . . . . . . . . Parts Attached 36 | . 3 6 . . . . . 12 . 9 2 2 2 Power 3 | . . 1 . . . . . 1 . 1 . . . Engine 3 | . . 1 . . . . . 1 . 1 . . . Core . | . . . . . . . . . . . . . . Reactor . | . . . . . . . . . . . . . . Propulsion 10 | . . 4 . . . . . 2 . 2 1 . 1 Treads . | . . . . . . . . . . . . . . Leg . | . . . . . . . . . . . . . . Wheel . | . . . . . . . . . . . . . . Hover . | . . . . . . . . . . . . . . Flight 10 | . . 4 . . . . . 2 . 2 1 . 1 Utility 12 | . . . . . . . . 5 . 6 . 1 . Device 4 | . . . . . . . . 3 . . . 1 . Storage . | . . . . . . . . . . . . . . Processor 2 | . . . . . . . . 1 . 1 . . . Hackware 6 | . . . . . . . . 1 . 5 . . . Protection . | . . . . . . . . . . . . . . Artifact . | . . . . . . . . . . . . . . Weapon 11 | . 3 1 . . . . . 4 . . 1 1 1 Energy Gun 1 | . 1 . . . . . . . . . . . . Energy Cannon . | . . . . . . . . . . . . . . Ballistic Gun 1 | . . 1 . . . . . . . . . . . Ballistic Cannon . | . . . . . . . . . . . . . . Launcher 1 | . 1 . . . . . . . . . . . . Special Weapon 2 | . 1 . . . . . . 1 . . . . . Impact Weapon 2 | . . . . . . . . 2 . . . . . Slashing Weapon 3 | . . . . . . . . 1 . . 1 . 1 Piercing Weapon . | . . . . . . . . . . . . . . Special Melee Weapon 1 | . . . . . . . . . . . . 1 . Unidentified Prototypes 2 | . . . . . . . . 1 . . . . 1 Parts Lost 23 | . . . . . 1 2 3 4 . . 1 . 12 Power 2 | . . . . . . 1 . . . . . . 1 Propulsion 8 | . . . . . . . 3 1 . . . . 4 Utility 9 | . . . . . . . . 3 . . . . 6 Weapon 4 | . . . . . 1 1 . . . . 1 . 1 Highest Loss Streak 6 | . . . . . 1 2 3 2 . . 1 . 6 To Critical Strikes . | . . . . . . . . . . . . . . Average Backups 3 | 1 3 4 5 5 4 4 4 4 5 4 1 1 2 Power . | . . . 1 1 1 1 1 1 2 1 . . . Propulsion . | . . . 1 1 . . . . . . . . . Utility . | . . . . . . . . . . . . . . Weapon 1 | 1 3 3 2 2 2 2 1 2 2 1 . . 1 Tool/Special . | . . . . . . . . . . . . . . Unused Backups 2 | . . . 1 . . . . . . 1 . . . Power 1 | . . . . . . . . . . 1 . . . Propulsion . | . . . . . . . . . . . . . . Utility . | . . . . . . . . . . . . . . Weapon 1 | . . . 1 . . . . . . . . . . Tool/Special . | . . . . . . . . . . . . . . Average Slot Usage (%) 36 | . 2 67 71 71 46 41 9 15 17 30 56 58 40 Engine 3 | . . 12 14 14 9 7 . . . 3 5 4 2 Flight 11 | . . 25 28 28 21 27 9 3 11 11 15 14 9 Device 2 | . . . . . . . . 6 . . . 2 3 Processor 1 | . . . . . . . . . . . 5 4 2 Hackware 7 | . . . . . . . . . . 8 26 23 14 Energy Gun 2 | . . 13 14 14 7 . . . . . . . . Ballistic Gun 2 | . . 14 14 14 9 7 . . . . . . . Slashing Weapon 2 | . . . . . . . . 2 5 5 4 2 2 Peak Build Rating 82 | . 2 5 6 6 7 6 6 31 9 58 78 82 81 Average Rating 31 | . . 4 5 6 6 5 3 22 9 33 69 74 50 On Entrance 17 | . . . 5 6 6 6 4 3 9 9 58 69 73 Naked Turns 179 | . 66 . . . . . 113 . . . . . . Heaviest Build 19 | . 3 6 6 6 6 4 . 9 4 13 13 19 15 Greatest Support 39 | 3 3 8 8 8 12 12 12 8 8 26 39 39 39 Greatest Overweight (x) 1 | . . . . . . . . 1 . 1 . . 1 Average Overweight (x) . | . . . . . . . . . . . . . . Largest Inventory Capacity 5 | 5 5 5 5 5 5 5 5 5 5 5 5 5 5 Average Capacity 5 | 5 5 5 5 5 5 5 5 5 5 5 5 5 5 Most Carried 5 | 3 5 5 5 5 5 4 5 5 5 5 2 2 5 Average Carried 3 | 1 3 4 4 5 4 4 4 4 5 4 1 1 3 Final Capacity 5 | 5 5 5 5 5 5 5 5 5 5 5 5 5 5 Final Carried 5 | 3 5 5 5 5 4 4 5 5 5 4 1 2 2 Scrap Engine Consumption 5 | . . . . . . . . 5 . . . . . Constructs Created 1 | . . . . . . . . 1 . . . . . Class Distribution -------------------- 87% | Mutant 5% | Hacker-Mutant Dominant Class ---------------- Mutant | -10/Materials Mutant | -10/Mines Mutant | -10/Exiles Mutant | -9/Mines Mutant | -8/Materials Scavenger-Mutant | -8/Storage Mutant | -8/Recycling Mutant | -6/Factory Sprinter | -5/Factory Mutant | -5/DSF Mutant | -4/Factory Mutant | -3/Research Mutant | -3/Testing Resources | -11 -10 -10 -10 -9 -8 -8 -8 -6 -5 -5 -4 -3 -3 ----------- Run | Yrd Mat Min Exi Min Mat Sto Rec Fac Fac DSF Fac Res Tes Matter Collected 596 | 80 . 226 . 16 . . . 144 . 105 25 . . Remotely . | . . . . . . . . . . . . . . Salvage Created 622 | . . 210 . . . . . 359 . . 25 28 . Parts 58 | . . 17 . . . . . 35 . . 2 4 . Haulers Intercepted . | . . . . . . . . . . . . . . Recyclers Shooed 3 | . . . . . . . . 3 . . . . . Parts Field Recycled . | . . . . . . . . . . . . . . Retrieved Matter . | . . . . . . . . . . . . . . Parts Self-Destructed . | . . . . . . . . . . . . . . Prevented . | . . . . . . . . . . . . . . Kills | -11 -10 -10 -10 -9 -8 -8 -8 -6 -5 -5 -4 -3 -3 ------- Run | Yrd Mat Min Exi Min Mat Sto Rec Fac Fac DSF Fac Res Tes Combat Hostiles Destroyed 16 | . . 11 . . . . . 5 . . . . . Melee 4 | . . . . . . . . 4 . . . . . Guns 11 | . . 11 . . . . . . . . . . . Classes Destroyed 5 | . . 2 . . . . . 3 . . . . . Builder 7 | . . . . . . . . 6 . . . 1 . Recycler 1 | . . . . . . . . 1 . . . . . Operator 3 | . . . . . . . . 2 . . 1 . . Swarmer 15 | . . 10 . . . . . 5 . . . . . Grunt 1 | . . 1 . . . . . . . . . . . Best Kill Streak 4 | . . 4 . . . . . 4 . . 1 1 . Combat Bots Only 4 | . . 4 . . . . . 2 . . . . . Max Kills in Single Turn 2 | . . 2 . . . . . 1 . . 1 1 . Gunslinging 1 | . . 1 . . . . . . . . . . . Exploded . | . . . . . . . . . . . . . . Melee 1 | . . . . . . . . 1 . . . . . Uniques/NPCs Destroyed . | . . . . . . . . . . . . . . Combat | -11 -10 -10 -10 -9 -8 -8 -8 -6 -5 -5 -4 -3 -3 -------- Run | Yrd Mat Min Exi Min Mat Sto Rec Fac Fac DSF Fac Res Tes Hostile Shots Fired 337 | . . 43 . . 2 19 11 68 . 7 . 2 185 Missed 144 | . . 14 . . 1 11 3 31 . 3 . . 81 Hits 193 | . . 29 . . 1 8 8 37 . 4 . 2 104 Projectile 193 | . . 29 . . 1 8 8 37 . 4 . 2 104 AOE 2 | . . . . 2 . . . . . . . . . Critical Strikes 7 | . . . . . . 1 . . . . . . 6 Part Disruptions 2 | . . . . . . . . . . . . . 2 Damage Taken 3282 | . 1 200 . 22 11 116 126 452 . 97 40 29 2188 Core 1845 | . 1 70 . 10 . 59 68 258 . 34 32 . 1313 Absorbed by Shields . | . . . . . . . . . . . . . . Ignored by Resistances 739 | . . 67 . 7 3 34 34 134 . 26 10 9 415 Core Remaining (%) 84 | 100 . . . 67 . . 76 69 . 96 97 . . Volleys Fired 25 | . 3 17 . . . . . 1 . 1 1 1 1 Largest 2 | . 1 2 . . . . . 1 . 1 1 1 1 Hottest 100 | . 100 70 . . . . . . . . . . . Shots Fired 42 | . 3 34 . . . . . 1 . 1 1 1 1 Gun 34 | . . 34 . . . . . . . . . . . Cannon . | . . . . . . . . . . . . . . Launcher 1 | . 1 . . . . . . . . . . . . Special 7 | . 2 . . . . . . 1 . 1 1 1 1 Kinetic 17 | . . 17 . . . . . . . . . . . Thermal 19 | . 2 17 . . . . . . . . . . . Explosive 1 | . 1 . . . . . . . . . . . . Electromagnetic . | . . . . . . . . . . . . . . Robot Hit Streak 8 | . . 8 . . . . . 3 . 4 5 6 7 Robot Miss Streak 2 | . . 2 . . . . . . . . . . . Penetration Max . | . . . . . . . . . . . . . . Secondary Targets 2 | . . 2 . . . . . . . . . . . Max Gunslinging Chain 1 | . . 1 . . . . . . . . . . . Shots Hit Robots 53 | . . 22 . . . . . 23 . 1 2 3 2 Core Hits 27 | . . 15 . . . . . 11 . . . 1 . Critical Kills . | . . . . . . . . . . . . . . Critical Parts Destroyed 1 | . . . . . . . . 1 . . . . . Critical Strikes 2 | . . . . . . . . 2 . . . . . Smash 1 | . . . . . . . . 1 . . . . . Sever 1 | . . . . . . . . 1 . . . . . Melee Attacks 111 | . . . . . . . . 41 . . 2 39 29 Impact 11 | . . . . . . . . 11 . . . . . Slashing 98 | . . . . . . . . 30 . . 2 37 29 Piercing . | . . . . . . . . . . . . . . Sneak Attacks 9 | . . . . . . . . 6 . . 1 2 . Combat Hostiles . | . . . . . . . . . . . . . . Follow-up Attacks . | . . . . . . . . . . . . . . Damage Inflicted 1620 | . 5 231 . . . . 8 1150 . . 107 70 49 Guns 231 | . . 231 . . . . . . . . . . . Cannons . | . . . . . . . . . . . . . . Explosions 2 | . 2 . . . . . . . . . . . . Melee 1370 | . . . . . . . . 1150 . . 107 70 43 Ramming 17 | . 3 . . . . . 8 . . . . . 6 Kinetic 108 | . . 108 . . . . . . . . . . . Thermal 123 | . . 123 . . . . . . . . . . . Explosive 2 | . 2 . . . . . . . . . . . . Electromagnetic . | . . . . . . . . . . . . . . Impact 173 | . . . . . . . . 173 . . . . . Slashing 1197 | . . . . . . . . 977 . . 107 70 43 Piercing . | . . . . . . . . . . . . . . Highest Corruption 18 | . . . . . . . . 1 . . . . 18 Average Corruption 2 | . . . . . . . . 1 . . . . 12 Corruption Purged . | . . . . . . . . . . . . . . Corruption Blocked . | . . . . . . . . . . . . . . Effects 17 | . . . . . . . . 9 . . . . 8 Message Errors 5 | . . . . . . . . 1 . . . . 4 Matter Fused 4 | . . . . . . . . 3 . . . . 1 Heat Flow Errors 2 | . . . . . . . . 2 . . . . . Energy Discharges 1 | . . . . . . . . 1 . . . . . Parts Fused 1 | . . . . . . . . 1 . . . . . Data Loss (minor) 3 | . . . . . . . . 1 . . . . 2 Misdirections 1 | . . . . . . . . . . . . . 1 Overload Shots . | . . . . . . . . . . . . . . Overflow Damage 397 | . . . . . . . . 325 . . 72 . . Projectiles . | . . . . . . . . . . . . . . Explosions . | . . . . . . . . . . . . . . Melee 397 | . . . . . . . . 325 . . 72 . . Knockbacks . | . . . . . . . . . . . . . . Impact . | . . . . . . . . . . . . . . Kinetic . | . . . . . . . . . . . . . . Secondary . | . . . . . . . . . . . . . . Self-Inflicted Damage 7 | . 1 . . . . . 3 . . . . . 3 Shots . | . . . . . . . . . . . . . . Rammed 4 | . 1 . . . . . 2 . . . . . 1 Targets Rammed 4 | . 1 . . . . . 2 . . . . . 1 Kicked . | . . . . . . . . . . . . . . Crushed . | . . . . . . . . . . . . . . Highest Temperature 139 | . . 136 . . . 14 . 139 . . . . 60 Average Temperature 53 | . . 52 . . . 14 . 64 . . . . 47 Received Heat Transfer 543 | . . 39 . . 9 54 81 87 . . . 12 261 Siege Activations . | . . . . . . . . . . . . . . Martial Activations . | . . . . . . . . . . . . . . Shielding Activations . | . . . . . . . . . . . . . . Robots Disrupted . | . . . . . . . . . . . . . . Combat Hostiles . | . . . . . . . . . . . . . . Robots Corrupted 1 | . . . . . . . . 1 . . . . . Combat Hostiles 1 | . . . . . . . . 1 . . . . . Parts Fried . | . . . . . . . . . . . . . . Impact Corruptions 4 | . . . . . . . . 4 . . . . . Robots Melted . | . . . . . . . . . . . . . . Combat Hostiles . | . . . . . . . . . . . . . . Parts Melted . | . . . . . . . . . . . . . . Heat Transferred 370 | . . 370 . . . . . . . . . . . Parts Sabotaged . | . . . . . . . . . . . . . . Parts Stolen . | . . . . . . . . . . . . . . Parts Stripped . | . . . . . . . . . . . . . . Power Chain Reactions . | . . . . . . . . . . . . . . Alert | -11 -10 -10 -10 -9 -8 -8 -8 -6 -5 -5 -4 -3 -3 ------- Run | Yrd Mat Min Exi Min Mat Sto Rec Fac Fac DSF Fac Res Tes Maximum Alert Level 5 | . . 1 . . . . . . . . . . 5 Low Security (%) 84 | 100 100 55 . 100 100 100 100 100 100 100 100 100 . Level 1 4 | . . 44 . . . . . . . . . . . Level 2 . | . . . . . . . . . . . . . . Level 3 . | . . . . . . . . . . . . . . Level 4 . | . . . . . . . . . . . . . . Level 5 . | . . . . . . . . . . . . . . High Security . | . . . . . . . . . . . . . . Max Security 11 | . . . . . . . . . . . . . 99 Peak Influence 2151 | . 9 342 . 15 15 30 10 145 52 125 60 76 2151 Initial 56 | . . . . . . 1 6 50 52 27 56 27 12 Average 235 | . 1 182 . . 4 14 1 18 48 73 21 15 1782 Influence Increases 2088 | . 17 462 . 30 15 64 10 491 4 98 87 129 681 Destroy 0b10 Robot/C 680 | . . 320 . . . . . 120 . 80 40 40 80 Destroy 0b10 Robot/NC 55 | . . . . . . . . 45 . . 5 5 . Destroy Leader 110 | . . 60 . . . . . 20 . 10 10 . 10 Allied During Kill 30 | . . 22 . . . . . . . 4 2 2 . Successful Hack 44 | . 7 . . . . 19 10 . 4 . 4 . . Disable Machine 9 | . . . . . . . . 9 . . . . . Destroy Structure 150 | . 10 . . . . . . 22 . 4 26 52 36 Advance Influence 50 | . . . . . . . . 50 . . . . . Partial Spotted 120 | . . . . . 15 30 . 60 . . . . 15 Lose Combat Pursuer 840 | . . 60 . 30 . 15 . 165 . . . 30 540 Influence Decreases 1535 | . 16 161 302 30 10 49 30 366 83 19 152 163 154 Entered New Map 529 | . . 1 302 . . 4 14 . 73 19 69 33 14 Time Decay 761 | . 16 160 . . . 40 16 316 10 . 73 130 . Lost Part 175 | . . . . . 10 5 . 30 . . 10 . 120 Lost Ally 70 | . . . . 30 . . . 20 . . . . 20 Squads Dispatched 33 | . 1 . . . . 1 . 8 . . 2 1 20 Investigation 4 | . 1 . . . . 1 . 2 . . . . . Extermination 4 | . . . . . . . . 2 . . 1 1 . Reinforcement 4 | . . . . . . . . 3 . . 1 . . Assault 21 | . . . . . . . . 1 . . . . 20 Garrison . | . . . . . . . . . . . . . . Intercept . | . . . . . . . . . . . . . . Searches Triggered . | . . . . . . . . . . . . . . Construction Impeded 1 | . . . . . . . . 1 . . . . . Haulers Reinforced . | . . . . . . . . . . . . . . Active Scanning Responses . | . . . . . . . . . . . . . . Cargo Convoy Interrupts . | . . . . . . . . . . . . . . Stealth | -11 -10 -10 -10 -9 -8 -8 -8 -6 -5 -5 -4 -3 -3 --------- Run | Yrd Mat Min Exi Min Mat Sto Rec Fac Fac DSF Fac Res Tes Distress Signals 6 | . . . . . 1 . . . . . . 1 4 Communications Jammed . | . . . . . . . . . . . . . . Distress Signals . | . . . . . . . . . . . . . . Times Spotted 169 | . . 22 . 2 6 10 3 25 . 3 1 4 93 Peak Tracking Total 36 | . . 3 . 2 6 9 3 7 . 2 2 3 36 Tactical Retreats 18 | . . 2 . 1 . 1 1 5 . . . 1 7 Traps | -11 -10 -10 -10 -9 -8 -8 -8 -6 -5 -5 -4 -3 -3 ------- Run | Yrd Mat Min Exi Min Mat Sto Rec Fac Fac DSF Fac Res Tes Traps Triggered 7 | . 1 . . . . 1 . 2 . 1 1 . 1 Indirectly . | . . . . . . . . . . . . . . Trap Hack Attempts . | . . . . . . . . . . . . . . Triggered . | . . . . . . . . . . . . . . Disarmed . | . . . . . . . . . . . . . . Reprogrammed . | . . . . . . . . . . . . . . Reused . | . . . . . . . . . . . . . . Traps Extracted . | . . . . . . . . . . . . . . Installed . | . . . . . . . . . . . . . . Triggered . | . . . . . . . . . . . . . . Machines | -11 -10 -10 -10 -9 -8 -8 -8 -6 -5 -5 -4 -3 -3 ---------- Run | Yrd Mat Min Exi Min Mat Sto Rec Fac Fac DSF Fac Res Tes Machines Disabled 2 | . 1 . . . . . . 1 . . . . . Max in Single Turn 1 | . 1 . . . . . . 1 . . . . . Garrison Access 1 | . . . . . . . . 1 . . . . . Machines Repaired . | . . . . . . . . . . . . . . Machines Dismantled . | . . . . . . . . . . . . . . Machines Sabotaged . | . . . . . . . . . . . . . . Overloaded Fab Kills . | . . . . . . . . . . . . . . Hacking | -11 -10 -10 -10 -9 -8 -8 -8 -6 -5 -5 -4 -3 -3 --------- Run | Yrd Mat Min Exi Min Mat Sto Rec Fac Fac DSF Fac Res Tes Machines Accessed 15 | . 1 . 1 . 1 4 5 1 1 . 1 . . Terminals 11 | . 1 . . . 1 4 3 . 1 . 1 . . Fabricators . | . . . . . . . . . . . . . . Repair Stations 1 | . . . . . . . . 1 . . . . . Recycling Units . | . . . . . . . . . . . . . . Scanalyzers . | . . . . . . . . . . . . . . Garrison Access . | . . . . . . . . . . . . . . Total Hacks 45 | . 1 . 1 . 1 6 32 2 1 . 1 . . Successful 39 | . 1 . 1 . 1 3 30 1 1 . 1 . . Failed 6 | . . . . . . 3 2 1 . . . . . Catastrophic 1 | . . . . . . . 1 . . . . . . Database Lockouts . | . . . . . . . . . . . . . . Manual 12 | . 1 . 1 . . 2 6 2 . . . . . Terminals 16 | . 1 . . . 1 6 6 . 1 . 1 . . Fabricators . | . . . . . . . . . . . . . . Repair Stations 2 | . . . . . . . . 2 . . . . . Recycling Units . | . . . . . . . . . . . . . . Scanalyzers . | . . . . . . . . . . . . . . Garrison Access . | . . . . . . . . . . . . . . Terminal Hacks 36 | . 1 . 1 . 1 3 28 . 1 . 1 . . Record 24 | . . . . . . . 24 . . . . . . Part Schematic 1 | . . . . . . . 1 . . . . . . Open Door 2 | . . . . . . 2 . . . . . . . Open DSF 2 | . . . . . . . . . 1 . 1 . . Level Access Points 1 | . . . . . . . 1 . . . . . . Branch Access Points 3 | . 1 . . . 1 1 . . . . . . . Proto ID Catalog 1 | . . . 1 . . . . . . . . . . Release Object 2 | . . . . . . . 2 . . . . . . Fabricator Hacks . | . . . . . . . . . . . . . . Repair Station Hacks . | . . . . . . . . . . . . . . Recycling Unit Hacks . | . . . . . . . . . . . . . . Scanalyzer . | . . . . . . . . . . . . . . Garrison Access Hacks . | . . . . . . . . . . . . . . Unauthorized Hacks 3 | . . . . . . . 2 1 . . . . . Terminals 2 | . . . . . . . 2 . . . . . . Botnet 2 | . . . . . . . 2 . . . . . . Fabricators . | . . . . . . . . . . . . . . Repair Stations 1 | . . . . . . . . 1 . . . . . Patch 1 | . . . . . . . . 1 . . . . . Recycling Units . | . . . . . . . . . . . . . . Scanalyzers . | . . . . . . . . . . . . . . Garrison Access . | . . . . . . . . . . . . . . Data Cores Recovered . | . . . . . . . . . . . . . . Used . | . . . . . . . . . . . . . . Hacking Detections 6 | . 1 . . . . 2 2 . . . 1 . . Full Trace Events 2 | . . . . . . 1 1 . . . . . . Feedback Events . | . . . . . . . . . . . . . . Feedback Blocked . | . . . . . . . . . . . . . . Robot Schematics Acquired . | . . . . . . . . . . . . . . Robots Built . | . . . . . . . . . . . . . . Authchips . | . . . . . . . . . . . . . . Time . | . . . . . . . . . . . . . . Total Robot Build Rating . | . . . . . . . . . . . . . . Part Schematics Acquired 1 | . . . . . . . 1 . . . . . . Parts Built . | . . . . . . . . . . . . . . Authchips . | . . . . . . . . . . . . . . Time . | . . . . . . . . . . . . . . Total Part Build Rating . | . . . . . . . . . . . . . . Parts Repaired . | . . . . . . . . . . . . . . Time . | . . . . . . . . . . . . . . Parts Recycled . | . . . . . . . . . . . . . . Recycled Matter . | . . . . . . . . . . . . . . Retrieved Matter . | . . . . . . . . . . . . . . Retrieved Components . | . . . . . . . . . . . . . . Parts Scanalyzed . | . . . . . . . . . . . . . . Part Schematics Acquired . | . . . . . . . . . . . . . . Parts Damaged . | . . . . . . . . . . . . . . Bothacking | -11 -10 -10 -10 -9 -8 -8 -8 -6 -5 -5 -4 -3 -3 ------------ Run | Yrd Mat Min Exi Min Mat Sto Rec Fac Fac DSF Fac Res Tes Used RIF Installer . | . . . . . . . . . . . . . . Robots Hacked 1 | . . . . . . . . . . . . 1 . Non-combat 1 | . . . . . . . . . . . . 1 . Combat . | . . . . . . . . . . . . . . Robot Hacks Applied 1 | . . . . . . . . . . . . 1 . find_dsf 1 | . . . . . . . . . . . . 1 . Relay Couplers Released 2 | . . . . . . . . 2 . . . . . Machine Destruction 2 | . . . . . . . . 2 . . . . . Fabnet Peak Effective % . | . . . . . . . . . . . . . . Robots Rewired . | . . . . . . . . . . . . . . Allies Hacked . | . . . . . . . . . . . . . . Hacks Repelled . | . . . . . . . . . . . . . . Allies | -11 -10 -10 -10 -9 -8 -8 -8 -6 -5 -5 -4 -3 -3 -------- Run | Yrd Mat Min Exi Min Mat Sto Rec Fac Fac DSF Fac Res Tes Total Allies 11 | . . 3 . 3 . . . 1 . 1 1 1 1 Largest Group 3 | . . 3 . 3 . . . 1 . 1 1 1 1 Highest-Rated Group 142 | . . 77 . 40 . . . 37 . 142 116 142 142 Highest-Rated Ally 142 | . . 31 . 16 . . . 37 . 142 116 142 142 Total Orders . | . . . . . . . . . . . . . . Ally Attacks 50 | . . 11 . 4 . . . 2 . 8 10 8 7 Total Damage 2470 | . . 168 . 44 . . . 181 . 540 472 480 585 Kills 18 | . . 5 . . . . . 1 . 4 2 2 4 Allies Corrupted . | . . . . . . . . . . . . . . Allies Melted . | . . . . . . . . . . . . . . Field Lobotomies 5 | . . . . . . . . 1 . 1 1 1 1 Intel | -11 -10 -10 -10 -9 -8 -8 -8 -6 -5 -5 -4 -3 -3 ------- Run | Yrd Mat Min Exi Min Mat Sto Rec Fac Fac DSF Fac Res Tes Active Infowar (turns) 708 | . . . . . . . . 105 . . . 321 282 Terrain 69 | . . . . . . . . 69 . . . . . Structural 640 | . . . . . . . . 37 . . . 321 282 Robot Analysis Total . | . . . . . . . . . . . . . . Derelict Logs Recovered 2 | . . 1 . 1 . . . . . . . . . Drone Launches . | . . . . . . . . . . . . . . Drone Recoveries . | . . . . . . . . . . . . . . Exploration | -11 -10 -10 -10 -9 -8 -8 -8 -6 -5 -5 -4 -3 -3 ------------- Run | Yrd Mat Min Exi Min Mat Sto Rec Fac Fac DSF Fac Res Tes Turns Passed 3218 | 16 95 330 99 64 37 80 177 1098 31 182 236 422 351 Spaces Moved 5645 | 26 156 649 210 160 75 234 347 1591 95 344 487 589 682 Core 1043 | 26 156 2 . . . . 176 554 . . . . 129 Treads . | . . . . . . . . . . . . . . Legs . | . . . . . . . . . . . . . . Wheels . | . . . . . . . . . . . . . . Hover . | . . . . . . . . . . . . . . Flight 4602 | . . 647 210 160 75 234 171 1037 95 344 487 589 553 Fastest Speed 30 | 50 50 37 37 37 34 34 34 32 32 30 34 34 34 Average Speed 39 | 50 50 37 37 37 36 34 42 43 32 36 34 34 38 Slowest Speed 119 | 50 50 50 37 37 37 34 50 119 32 112 34 34 100 Overloaded Moves . | . . . . . . . . . . . . . . Propulsion Burnouts . | . . . . . . . . . . . . . . Robots Hopped 50 | . . 14 . . 3 11 2 9 . 2 4 2 3 Potential Cave-ins 27 | . . 3 . . . . . . . . . 12 12 Cave-ins Triggered 3 | . . . . . . . . . . . . . 3 Exploration Rate (%) 39 | 3 17 98 60 39 14 34 64 25 5 94 12 17 76 Regions Visited 13 Branch Regions 6 Pre-discovered Areas 2 | . . 1 . 1 . . . . . . . . . Known Exits Taken 7 | . 1 . . . 1 1 1 . 1 . 1 1 . Unknown Exits Taken 5 | 1 . 1 1 1 . . . 1 . . . . . Scrap Searched 4 | . . 2 . 2 . . . . . . . . . Spaces Dug 77 | . 1 . . . . . . 14 . . . 35 27 Terrain Destroyed 86 | . 10 . . . . . . 14 . . . 35 27 Melee 76 | . . . . . . . . 14 . . . 35 27 Projectile 1 | . 1 . . . . . . . . . . . . AOE 9 | . 9 . . . . . . . . . . . . Terrain Rammed . | . . . . . . . . . . . . . . Walls Destroyed . | . . . . . . . . . . . . . . Machines Disabled . | . . . . . . . . . . . . . . Actions | -11 -10 -10 -10 -9 -8 -8 -8 -6 -5 -5 -4 -3 -3 --------- Run | Yrd Mat Min Exi Min Mat Sto Rec Fac Fac DSF Fac Res Tes Total 6362 | 28 165 692 231 164 81 222 374 1905 94 394 547 741 724 Wait 545 | . . 30 20 5 9 . 25 256 . 30 58 111 1 Move 5535 | 25 155 624 209 159 68 213 342 1572 94 339 478 584 673 Hop 44 | . . 10 . . 3 9 2 9 . 2 4 2 3 Pick Up 11 | 3 . 2 1 . . . 1 3 . 1 . . . Fast Attach 26 | . 2 3 . . . . . 9 . 8 . 2 2 Attach 18 | . 1 2 . . 1 . . 5 . 2 3 . 4 Detach 14 | . 3 . . . . . . 4 . 1 1 1 4 Swap 3 | . . 2 . . . . . . . . . 1 . Drop 13 | . . 2 1 . . . 1 5 . 4 . . . Fire 25 | . 3 17 . . . . . 1 . 1 1 1 1 Melee 111 | . . . . . . . . 41 . . 2 39 29 Ram 4 | . 1 . . . . . 2 . . . . . 1 Kick . | . . . . . . . . . . . . . . Crush . | . . . . . . . . . . . . . . Escape Stasis 12 | . . . . . . . . . . 6 . . 6 Rewire 1 | . . . . . . . 1 . . . . . . Trap . | . . . . . . . . . . . . . . Miscellaneous . | . . . . . . . . . . . . . . Route ------- -11/Scrapyard -10/Materials -10/Mines (discovered 3 exits: [*Mat x2] / *Exi) -10/Exiles -9/Mines -8/Materials (discovered 3 exits: Fac x2 / *Sto) -8/Storage -8/Recycling -6/Factory -5/Factory -5/DSF -4/Factory -3/Research -3/Testing (discovered 1 exit: [*Res]) History --------- Turn | Location | Event 2 | -11/Scrapyard | Discovered new exit (range 16) 17 | -11/Scrapyard | Entered Materials 18 | -10/Materials | Met a group of wandering Federalists 24 | -10/Materials | Identified exit to Mines 112 | -10/Materials | Entered Mines 144 | -10/Mines | Learned 8 Materials zone layouts 154 | -10/Mines | Found a hidden stash of uninstalled traps 190 | -10/Mines | Escorted by a lone wolf Derelict 199 | -10/Mines | Discovered new exit (range 9) 200 | -10/Mines | Discovered new exit (range 3) 210 | -10/Mines | Learned location of Storage (-8) 305 | -10/Mines | Build established: Mutant 440 | -10/Mines | Deemed a non-threat by the Exiles lab entrance 441 | -10/Mines | Discovered new exit (range 5) 442 | -10/Mines | Entered Exiles 451 | -10/Exiles | Met 8R-AWN 458 | -10/Exiles | Met EX-HEX 468 | -10/Exiles | Met EX-BIN 472 | -10/Exiles | Aligned with FarCom system 473 | -10/Exiles | Given EX-Vault access code 482 | -10/Exiles | Opened EX-Vault 487 | -10/Exiles | Found Field Lobotomy Kit 514 | -10/Exiles | Warned to stay clear of 0b10 Research branches 525 | -10/Exiles | Met EX-DEC 538 | -10/Exiles | Discovered new exit (range 10) 541 | -10/Exiles | Left Exiles lab with Field Lobotomy Kit 541 | -10/Exiles | Entered Mines 545 | -9/Mines | Discovered new exit (range 11) 547 | -9/Mines | Assembled infested the area 555 | -9/Mines | Learned Materials emergency access door positions 561 | -9/Mines | Assisted by bots powering up and referring to "LRC-V3" 605 | -9/Mines | Entered Materials 605 | -8/Materials | Evolved 4 slots: Propulsion x2, Utility x2 606 | -8/Materials | Identified exit to Factory 606 | -8/Materials | Identified exit to Storage 606 | -8/Materials | Lost 4 allies 642 | -8/Materials | Entered Storage 675 | -8/Storage | Identified exit to Recycling 721 | -8/Storage | Used back door to open Recycling access 722 | -8/Storage | Entered Recycling 762 | -8/Recycling | Scanned before Scraplab entrance 766 | -8/Recycling | Entered Scraplab 770 | -8/Recycling | Angered Scraplab inhabitants 771 | -8/Recycling | Found Prototype Device 817 | -8/Recycling | Lost 3 parts (3n) 827 | -8/Recycling | Identified exit to Factory 899 | -8/Recycling | Entered Factory 899 | -6/Factory | Evolved 4 slots: Utility x4 899 | -6/Factory | Identified Scrap Engine 1145 | -6/Factory | Assimilated P-60 Hacker with FLK Orb 1399 | -6/Factory | Discovered new exit (range 15) 1997 | -6/Factory | Entered another Factory area 1997 | -5/Factory | Evolved 2 slots: Utility x2 2027 | -5/Factory | Identified exit to DSF 2028 | -5/Factory | Entered DSF 2039 | -5/DSF | Assimilated H-71 Marshal with FLK Orb 2044 | -5/DSF | Additional patrols routed to DSF 2055 | -5/DSF | Discovered new exit (range 15) 2209 | -5/DSF | Identified exit to Factory 2210 | -5/DSF | Entered Factory 2210 | -4/Factory | Evolved 2 slots: Propulsion x2 2321 | -4/Factory | Spotted B-86 Titan 2322 | -4/Factory | Assimilated B-86 Titan with FLK Orb 2328 | -4/Factory | Discovered new exit (range 15) 2331 | -4/Factory | Identified exit to Research 2446 | -4/Factory | Entered Research 2446 | -3/Research | Evolved 2 slots: Utility x2 2751 | -3/Research | Assimilated H-71 Marshal with FLK Orb 2811 | -3/Research | Discovered new exit (range 8) 2813 | -3/Research | Identified exit to Testing 2868 | -3/Research | Entered Testing 2868 | -3/Testing | Accompanied by 1 ally 2869 | -3/Testing | Maximum security lockdown engaged 3018 | -3/Testing | Crushed by falling debris 3070 | -3/Testing | Crushed by falling debris 3071 | -3/Testing | System corruption reached 10% 3105 | -3/Testing | Lost 6 parts (1p2n2u1w) 3145 | -3/Testing | Core integrity fell below 50% 3150 | -3/Testing | Crushed by falling debris 3157 | -3/Testing | Spotted Investigator 3176 | -3/Testing | Core integrity fell below 20% 3194 | -3/Testing | Lost 3 parts (1n2u) 3215 | -3/Testing | Discovered new exit (range 12) 3218 | -3/Testing | Assimilated Y-72 Warden with FLK Orb 3219 | -3/Testing | Spotted Executioner 3219 | -3/Testing | Spotted Executioner 3219 | -3/Testing | Destroyed by G-67 Veteran with Plasma Rifle Last Messages --------------- M-36 Artificer unfolds itself. C-30 ARC bursts open, deploying its payload. G-73 Enforcer unfolds itself. G-67 Veteran unfolds itself. I-47 Archangel unfolds itself. C-30 ARC bursts open, deploying its payload. G-73 Enforcer unfolds itself. C-30 ARC bursts open, deploying its payload. P-80 Master unfolds itself. Executioner unfolds itself. C-30 ARC bursts open, deploying its payload. G-73 Enforcer unfolds itself. G-67 Veteran unfolds itself. L-61 Swordsman unfolds itself. G-67 Veteran unfolds itself. M-36 Artificer unfolds itself. C-30 ARC bursts open, deploying its payload. P-80 Master unfolds itself. L-61 Swordsman sneak attacks. Warden 8a Med. Treads severed. Map ----- +----------------------------------------------------+ | | | | | | | | | | | | | ?????????????????????????????????????????????????? | | ?????????????????????????????????????????????????? | | ?????????????????????????????????????????????????? | | ?????????????????????????????????????????????????? | | ?????????????????????????????????????????????????? | | ?????????????????????????????????????????????????? | | ?????????????????????????????????????????????????? | | ?????????????????????????????????????????????????? | | ?????????????????????????????????????????????????? | | ??????????????###????????????????????????????????? | | ??????????????# p???????????????????????????????? | | ??????????????? p ??????????????????????????????? | | ???????????????? p ?????????????????????????????? | | ?????????????????#g ????????????????????????????? | | ?????????????????#mgm ???????????????????????????? | | ??????????????####ggg ###+####???????????????????? | | ??????????????#Epp gg +??""""?????????????? | | ??????????????#glYglg # g""""????????????? | | ??????????????#ipgYYg ; """????????????? | | ??????????????#elYpliE @ #???????????????????? | | ?????????????????#b######### #???????????????????? | | ????????????????ilblE??????# #???????????????????? | | ??????????????????i????????# #???????????????????? | | ???????????????????????????# #???????????????????? | | ???????????????????????????# #???????????????????? | | ???????????????????????????# #???????????????????? | | ???????????????????????????# #???????????????????? | | ???????????????????????????# #???????????????????? | | ???????????????????????????# #???????????????????? | | ???????????????????????????# #???????????????????? | | ???????????????????????????# #???????????????????? | | ??????????????##########???# #???????????????????? | | ??????????????##########??## ##??????????????????? | | ??????????????## ] ##??## ##??????????????????? | | ??????????????## ##??## ##??????????????????? | | #####?????????## """ ##??##h##??????????????????? | | #####?########## """ ##??## ##??????????????????? | | ############# """ ##??## #####???????????????? | | ##### ! ### ###### #####???????????????? | | ######+######## ##???????????????? | | " ##???????????????? | | ###### ######## ##???????????????? | | ##### ###### ######## #####???????????????? | | ############??## ##????## #####???????????????? | +----------------------------------------------------+ Best States ------------- Heat Dissipation 46 Energy Generation 14 Energy Capacity 275 Matter Stores 300 Matter Capacity 300 Sight Range 16 Terrain Scan Range 14 Terrain Scan Density 85 Resistance: KI 20 Resistance: TH 20 Resistance: EX 20 Resistance: EM 20 Resistance: I 20 Resistance: S 20 Resistance: P 20 Evasion (%) 63 Offensive Hacking 10 Defensive Hacking 10 Authchip Count 5 Item Schematics ----------------- Hacking Suite | -8/Recycling | Hacked Robot Schematics ------------------ None Fabricated ------------ Nothing Repaired ---------- Nothing Alien Tech Used ----------------- None Achievements -------------- None Challenges ------------ None Game ------ Seed ScrapoidBeamBooster Manual? 0 Play Time 00:41:02 Cumulative 133.4 hours Start 2025.05.14 @ 22:38:45 End 2025.05.14 @ 23:18:27 Sessions 1 Manual Loads 0 Difficulty Adventurer Special Mode None Game No. 149 Rogue 18 Adventurer 120 Explorer 11 Win Type - Total 29 Types 9/0/11/0/4/0/4/1/0/0 Lore% 41 Gallery% 42 Achievement% 64 Wizard Run 0 Options --------- Layout 0 ASCII 0 Keyboard 0 Movement Numpad Keybinds 0 Fullscreen 2 Font 12/Smallcaps Map View 83x54 Zoom Use 0% Tactical HUD 0 Map Filters NONE Filters NONE Steam X RUN: 14878c84-dd46-4f15-9c50-c1905c846b35